bitfinex/quotes_ETHUSD_20250519
["timestamp","ask_amount","ask_price","bid_price","bid_amount"]
[1747620537431,4.12337555,2425.2,2425.0,9.88985054]
[1747620537635,4.12354129,2425.1,2425.0,9.88985054]
[1747620537835,4.12344628,2425.2,2425.0,9.88985054]
[1747620538134,8.0,2425.7,2425.1,8.667]
[1747620538420,4.12292205,2425.5,2425.1,8.667]
[1747620538622,8.0,2425.7,2425.1,8.667]
[1747620538831,12.12257173,2425.7,2425.1,8.667]
[1747620538994,4.12350688,2425.2,2425.0,0.40915054]
[1747620539307,5.26049198,2425.1,2425.0,0.40915054]
[1747620539627,4.84814129,2425.1,2425.0,0.40915054]
[1747620539988,4.12422155,2424.7,2424.6,17.798]
[1747620541929,4.12422155,2424.7,2424.6,26.466]
[1747620542226,4.1248775,2424.4,2424.2,1.07314135]
[1747620542424,4.1248775,2424.4,2424.3,8.668]
[1747620542627,4.12524235,2424.1,2424.0,8.669]
[1747620543127,4.12541254,2424.0,2423.9,0.40915054]
[1747620543335,4.12643393,2423.4,2423.3,8.669]
[1747620544003,4.1262738,2423.5,2423.3,8.669]
[1747620544192,4.12643393,2423.4,2423.3,8.669]
[1747620545223,4.12694482,2423.1,2423.0,0.40915054]
[1747620545422,4.12678926,2423.2,2423.0,0.40915054]
[1747620545624,8.679,2423.8,2423.0,0.40915054]
[1747620545811,4.12660834,2423.3,2423.0,0.40915054]
[1747620546016,4.12523503,2424.2,2423.0,0.40915054]
[1747620546017,17.803,2425.2,2423.1,0.04126876]
[1747620546199,4.12592761,2423.7,2423.2,0.7622]
[1747620546403,4.12603273,2423.7,2423.3,8.671]
[1747620546804,4.12614844,2423.6,2423.2,0.7622]
[1747620547000,8.675,2424.2,2423.3,9.15990693]
[1747620547358,4.12586937,2423.8,2423.3,9.15990693]
[1747620548203,4.12592965,2423.7,2423.3,9.15990693]
[1747620548399,4.12524235,2424.1,2423.3,0.48890693]
[1747620548601,4.12524235,2424.1,2423.2,0.7622]
[1747620548602,4.12660421,2423.3,2423.2,8.673]
[1747620548927,4.12654535,2423.4,2423.2,8.673]
[1747620549107,4.12632949,2423.5,2423.2,8.673]
[1747620549298,4.12652656,2423.4,2423.2,8.673]
[1747620550506,4.12660421,2423.3,2423.2,8.673]
[1747620550741,4.12711514,2423.0,2422.9,8.673]
[1747620552219,4.12711514,2423.0,2422.3,18.5663]
[1747620552220,4.12813738,2422.4,2422.3,18.5663]
[1747620552431,4.1283078,2422.3,2422.2,8.645]
[1747620553251,9.3956,2422.3,2421.6,0.94311854]
[1747620553427,4.12888116,2422.0,2421.6,1.97826039]
[1747620553629,4.12825308,2422.4,2421.7,4.12933063]
[1747620553828,4.12807381,2422.5,2421.8,4.89245993]
[1747620554011,0.7246,2422.9,2422.0,4.12879157]
[1747620554213,0.7246,2422.9,2422.1,8.645]
[1747620554411,4.12780753,2422.6,2422.1,12.62659125]
[1747620554643,4.12772818,2422.7,2422.1,16.75523524]
[1747620555037,4.12750671,2422.8,2421.9,22.4919125]
[1747620555038,4.12745583,2422.8,2421.9,17.813]
[1747620555336,4.12881915,2422.0,2421.9,26.46]
[1747620555930,4.12872879,2422.1,2421.9,26.46]
[1747620556247,4.1284522,2422.3,2421.9,26.46]
[1747620556416,19.4626,2422.7,2421.9,29.51892303]
[1747620556610,4.12832713,2422.3,2421.9,29.51892303]
[1747620556813,4.12848453,2422.2,2422.0,8.647]
[1747620557017,4.12864869,2422.1,2422.0,8.647]
[1747620557216,4.12881915,2422.0,2421.9,17.813]
[1747620557568,19.4626,2422.7,2421.9,17.813]
[1747620557735,4.12850667,2422.2,2421.9,17.813]
[1747620558554,1.94626,2422.6,2421.9,17.813]
[1747620558854,1.55000826,2423.0,2422.1,4.12852743]
[1747620559026,1.55000826,2423.0,2422.1,4.44079528]
[1747620559346,1.55000826,2423.0,2422.1,8.02222902]
[1747620560045,4.12782099,2422.6,2422.1,8.02222902]
[1747620560946,4.12796914,2422.5,2422.1,3.89370159]
[1747620561125,4.12787802,2422.6,2422.1,8.02233484]
[1747620561956,4.12715334,2423.0,2422.4,4.12813738]
[1747620562159,4.12737736,2422.9,2422.5,8.649]
[1747620563054,4.12718377,2423.0,2422.5,8.649]
[1747620563231,4.1273314,2422.9,2422.5,8.649]
[1747620564050,4.12669583,2423.3,2422.7,4.1275243]
[1747620564252,4.12679866,2423.2,2422.7,4.1275243]
[1747620564447,4.12739608,2422.9,2422.8,8.649]
[1747620565521,4.12728548,2422.9,2422.8,8.649]
[1747620565755,4.12718116,2423.0,2422.8,8.649]
[1747620566251,4.12728548,2422.9,2422.6,0.7783]
[1747620566457,4.12728548,2422.9,2422.7,8.649]
[1747620567255,10.7946,2423.7,2422.7,9.59173]
[1747620567451,4.12688888,2423.2,2422.7,13.71927332]
[1747620567622,12.74911688,2423.6,2422.6,0.7783]
[1747620567821,4.12743928,2422.9,2422.7,8.649]
[1747620568021,4.12743928,2422.9,2422.6,0.7783]
[1747620568222,4.12743928,2422.9,2422.7,8.649]
[1747620568417,4.12743928,2422.9,2422.6,0.7783]
[1747620568655,4.12737869,2422.9,2422.7,8.649]
[1747620568828,4.12752733,2422.8,2422.6,0.7783]
[1747620569034,4.12736926,2422.9,2422.7,8.649]
[1747620570037,4.12745583,2422.8,2422.7,8.649]
[1747620572261,4.12796697,2422.5,2422.4,8.649]
[1747620572669,4.12864869,2422.1,2422.0,0.8238]
[1747620572862,4.12881915,2422.0,2421.9,26.462]
[1747620573081,4.85358963,2421.9,2421.8,0.40915054]
[1747620573292,6.61083051,2421.9,2421.8,0.40915054]
[1747620573944,16.68083051,2421.9,2421.8,0.40915054]
[1747620574142,25.23083051,2421.9,2421.8,0.40915054]
[1747620574548,29.56983051,2421.9,2421.8,0.10228763]
[1747620575335,0.7246,2421.5,2421.2,0.66666667]
[1747620575537,4.1300128,2421.3,2421.2,0.66666667]
[1747620575732,22.82232517,2421.3,2421.2,0.66666667]
[1747620575940,12.1315485,2420.4,2420.3,0.66666667]
[1747620576138,34.4705485,2420.4,2420.3,0.66666667]
[1747620576474,37.56536739,2420.4,2420.3,0.66666667]
[1747620576860,33.22636739,2420.4,2420.3,0.66666667]
[1747620577174,33.95096739,2420.4,2420.3,0.66666667]
[1747620577391,33.97896739,2420.4,2420.3,0.66666667]
[1747620578389,33.97896739,2420.4,2419.0,8.651]
[1747620578390,4.13325617,2419.4,2418.5,18.5945]
[1747620578573,12.95625617,2419.4,2418.5,18.5945]
[1747620579249,12.95625617,2419.4,2418.1,12.1354639]
[1747620579250,4.13444269,2418.8,2418.2,0.31403422]
[1747620579455,4.13496526,2418.4,2418.3,0.34519398]
[1747620579664,8.845,2418.9,2418.3,0.34519398]
[1747620579863,4.13481825,2418.5,2418.3,0.34519398]
[1747620580078,8.861,2418.8,2418.0,0.7675]
[1747620580234,4.13483849,2418.5,2418.0,0.7675]
[1747620580443,8.861,2418.8,2418.0,9.4225]
[1747620580679,4.13432723,2418.8,2418.0,9.4225]
[1747620580983,12.99172419,2419.2,2418.1,8.0]
[1747620581153,4.13405203,2419.0,2418.3,4.13510595]
[1747620581482,4.13389748,2419.1,2418.4,12.78991209]
[1747620581689,8.858,2419.3,2418.5,0.8179]
[1747620581836,4.13388989,2419.1,2418.5,0.8179]
[1747620582041,4.13376875,2419.1,2418.5,4.95268602]
[1747620582339,4.13376875,2419.1,2418.5,0.8179]
[1747620582566,4.13376875,2419.1,2418.5,2.76144296]
[1747620582783,8.858,2419.3,2418.5,2.76144296]
[1747620583082,4.13428201,2418.8,2418.3,8.86]
[1747620583237,4.13449147,2418.7,2418.3,8.86]
[1747620583436,4.13415647,2418.9,2418.3,8.86]
[1747620583437,4.1343578,2418.8,2418.3,8.86]
[1747620583671,4.13416992,2418.9,2418.3,12.99510639]
[1747620583994,8.853,2419.2,2418.4,0.7545]
[1747620584155,4.13421286,2418.9,2418.4,0.7545]
[1747620584479,4.1340148,2419.0,2418.4,4.88944774]
[1747620584779,4.13422418,2418.9,2418.4,0.7545]
[1747620584985,4.13320205,2419.5,2418.4,1.71615]
[1747620585151,4.13442294,2418.8,2418.4,1.71615]
[1747620585346,4.13475136,2418.6,2418.4,0.7545]
[1747620585675,4.13479429,2418.5,2418.4,9.6165]
[1747620586071,4.13479429,2418.5,2418.4,0.7545]
[1747620586277,4.13462376,2418.6,2418.0,0.7725]
[1747620586473,4.13547826,2418.1,2418.0,0.7725]
[1747620586879,4.13547826,2418.1,2417.4,8.0]
[1747620586880,4.13582033,2417.9,2417.7,0.7725]
[1747620587057,4.13633355,2417.6,2417.5,8.862]
[1747620587253,8.894,2417.7,2417.0,0.7725]
[1747620587468,8.894,2417.7,2417.0,4.90981952]
[1747620587469,4.13617339,2417.7,2417.0,4.90981952]
[1747620587646,13.46407948,2418.1,2417.1,4.13715553]
[1747620587997,4.13718919,2417.1,2417.0,0.7725]
[1747620588294,4.13582033,2417.9,2416.7,8.863]
[1747620588295,8.923,2417.5,2416.7,8.863]
[1747620588448,4.13710724,2417.2,2416.8,0.34540822]
[1747620588780,4.13646241,2417.6,2416.8,0.34540822]
[1747620588991,4.13672608,2417.4,2417.0,0.7725]
[1747620589197,4.13687647,2417.3,2417.0,0.7725]
[1747620589340,8.915,2417.7,2417.0,0.7725]
[1747620589341,4.13627271,2417.7,2417.1,4.13717368]
[1747620589546,4.13567393,2418.0,2417.4,4.13657926]
[1747620589740,8.935,2418.4,2417.3,0.7628]
[1747620589942,4.13539711,2418.2,2417.6,4.13623934]
[1747620590172,8.941,2418.4,2417.8,0.7628]
[1747620590372,0.0579,2419.0,2417.9,8.863]
[1747620590676,0.0579,2419.0,2418.1,4.13533155]
[1747620590854,4.13350778,2419.3,2418.1,4.13533155]
[1747620590855,4.13342702,2419.3,2418.4,0.7628]
[1747620591057,4.13369667,2419.2,2418.6,4.1344803]
[1747620591378,4.19077958,2419.7,2418.7,8.865]
[1747620591379,4.13428813,2418.8,2418.7,8.865]
[1747620591580,4.1335282,2419.3,2418.7,12.999396]
[1747620591746,4.1335282,2419.3,2418.8,8.865]
[1747620591948,4.13350522,2419.3,2418.8,8.865]
[1747620592165,4.13326467,2419.4,2418.9,0.8326]
[1747620592381,4.13342896,2419.3,2418.9,0.8326]
[1747620592573,4.1330377,2419.6,2418.9,0.8326]
[1747620592878,4.13339364,2419.4,2418.9,0.8326]
[1747620593176,4.13342702,2419.3,2418.9,0.8326]
[1747620593383,4.13342702,2419.3,2419.0,8.865]
[1747620593582,4.13328512,2419.4,2419.0,8.865]
[1747620593882,0.0579,2420.0,2419.0,8.865]
[1747620594086,4.13268453,2419.8,2419.1,0.8223]
[1747620594304,4.13212524,2420.1,2419.3,4.95568845]
[1747620594504,4.13211328,2420.1,2419.4,0.8223]
[1747620594650,8.94,2420.6,2419.5,8.865]
[1747620594855,4.13266053,2419.8,2419.5,8.865]
[1747620595180,4.13289563,2419.7,2419.4,0.8223]
[1747620595362,4.13212738,2420.1,2419.6,8.865]
[1747620595556,4.1315485,2420.4,2419.6,8.865]
[1747620595884,4.13120713,2420.6,2419.8,0.8194]
[1747620596183,4.13240216,2419.9,2419.8,9.6834]
[1747620596884,1.31311071,2420.5,2419.4,0.8194]
[1747620597059,4.13274372,2419.7,2419.4,0.8194]
[1747620597264,4.13308534,2419.5,2419.4,0.8194]
[1747620597610,4.1315485,2420.4,2419.3,9.6465]
[1747620597757,4.13219248,2420.1,2419.3,26.30467215]
[1747620597959,4.13206065,2420.1,2419.3,22.17125]
[1747620598178,4.13188992,2420.2,2419.4,8.864]
[1747620598483,4.13232133,2420.0,2419.4,12.99715631]
[1747620598688,4.13232133,2420.0,2419.5,4.13307844]
[1747620598896,4.1317451,2420.3,2419.8,4.13245362]
[1747620599085,4.1317451,2420.3,2419.7,0.7825]
[1747620599086,4.13187975,2420.3,2419.9,8.864]
[1747620599293,1.31311071,2420.5,2420.0,8.864]
[1747620599587,4.13195085,2420.2,2420.0,8.864]
[1747620599817,4.1315485,2420.4,2420.0,8.864]
[1747620600163,4.13225862,2420.0,2419.7,0.7825]
[1747620600582,4.13225862,2420.0,2419.8,8.863]
[1747620600894,4.13137781,2420.5,2419.8,8.863]
[1747620600895,4.13240216,2419.9,2419.8,8.863]
[1747620602280,4.95886779,2419.9,2419.8,8.863]
[1747620603401,4.13359788,2419.2,2419.1,18.6219]
[1747620603574,4.95901116,2419.9,2419.1,27.4849]
[1747620603762,4.131546,2420.5,2419.1,31.6185254]
[1747620603972,4.13188992,2420.2,2419.2,4.1334825]
[1747620604173,4.1328287,2419.7,2419.2,4.1334825]
[1747620604370,4.13266019,2419.8,2419.2,4.1334825]
[1747620604690,4.13265961,2419.8,2419.1,27.4849]
[1747620604875,4.13337351,2419.4,2419.2,8.863]
[1747620605068,0.0579,2420.3,2419.2,8.863]
[1747620605315,4.1322314,2420.0,2419.2,8.863]
[1747620605467,4.13206065,2420.1,2419.1,18.6219]
[1747620605668,4.13305673,2419.6,2419.2,8.863]
[1747620605896,4.13219085,2420.1,2419.3,0.81123117]
[1747620606112,4.13219085,2420.1,2419.5,4.90282918]
[1747620606286,8.935,2420.4,2419.5,0.7699]
[1747620606482,4.13214806,2420.1,2419.5,0.7699]
[1747620606786,4.13168287,2420.4,2419.6,0.04132229]
[1747620606985,13.06886582,2420.8,2419.8,4.13256601]
[1747620607216,4.13169734,2420.4,2419.9,4.13235728]
[1747620607415,4.13169734,2420.4,2419.9,0.8032]
[1747620607584,4.1322314,2420.0,2419.9,0.8032]
[1747620607790,4.1322314,2420.0,2419.3,8.0]
[1747620608101,4.13308534,2419.5,2419.4,9.6336]
[1747620608300,4.13308534,2419.5,2419.4,0.7706]
[1747620608504,4.13342702,2419.3,2419.2,9.16530362]
[1747620608890,4.13342702,2419.3,2419.2,0.30330362]
[1747620609086,13.07742702,2419.3,2419.2,0.30330362]
[1747620609291,13.13532702,2419.3,2419.2,0.30330362]
[1747620609828,4.13342702,2419.3,2419.2,0.30330362]
[1747620610151,5.93675816,2419.3,2419.2,0.30330362]
[1747620610478,15.90447053,2419.3,2419.2,0.30330362]
[1747620610679,15.96237053,2419.3,2419.2,0.30330362]
[1747620611791,4.13361686,2419.2,2418.4,17.845]
[1747620611993,4.13479429,2418.5,2418.4,17.845]
[1747620612508,4.13464236,2418.6,2418.4,17.845]
[1747620612509,4.13471079,2418.6,2418.4,17.845]
[1747620612923,4.13414217,2418.9,2418.4,17.845]
[1747620613106,4.13404585,2419.0,2418.4,17.845]
[1747620613309,4.13466395,2418.6,2418.4,17.845]
[1747620613624,4.133819,2419.1,2418.4,26.805]
[1747620613625,4.13479429,2418.5,2418.4,26.805]
[1747620613782,10.55524588,2419.2,2418.4,26.805]
[1747620613992,4.13434269,2418.8,2418.4,26.805]
[1747620614725,4.13257585,2419.8,2418.5,0.8046]
[1747620614726,4.95983296,2419.5,2418.5,0.8046]
[1747620614894,4.13423094,2418.9,2418.6,8.961]
[1747620615088,4.13423094,2418.9,2418.5,0.8046]
[1747620615089,4.13428146,2418.8,2418.7,8.961]
[1747620615294,4.13457983,2418.7,2418.6,8.961]
[1747620615723,4.13479429,2418.5,2418.4,26.806]
[1747620616417,4.13479429,2418.5,2418.4,17.845]
[1747620616724,4.13513625,2418.3,2418.2,9.7656]
[1747620617633,4.13498841,2418.4,2417.8,0.31259943]
[1747620617634,4.13582033,2417.9,2417.8,0.8001]
[1747620617826,4.13582033,2417.9,2417.8,9.7621]
[1747620617998,4.13513625,2418.3,2417.8,9.7621]
[1747620618194,4.13529394,2418.3,2417.8,9.7621]
[1747620618390,4.13534264,2418.2,2417.8,9.7621]
[1747620618593,4.13530868,2418.2,2417.7,4.13606629]
[1747620618794,4.13560008,2418.1,2417.5,0.8251]
[1747620618996,9.0179,2419.1,2417.7,0.8251]
[1747620619299,4.13446788,2418.7,2418.2,4.13522419]
[1747620619617,4.13404214,2419.0,2418.4,4.95997908]
[1747620619822,4.13365539,2419.2,2418.5,0.55]
[1747620620021,4.13240216,2419.9,2418.9,0.8291]
[1747620620208,4.13376875,2419.1,2419.0,8.962]
[1747620620528,4.13277822,2419.7,2419.0,8.962]
[1747620620827,4.13277822,2419.7,2418.7,8.962]
[1747620620828,4.13424527,2418.9,2418.7,8.962]
[1747620621126,4.13428146,2418.8,2418.7,8.962]
[1747620621843,4.13413685,2418.9,2418.7,8.962]
[1747620621993,4.13345284,2419.3,2418.7,8.962]
[1747620622326,4.13361028,2419.2,2418.9,0.8154]
[1747620622507,4.13383115,2419.1,2418.9,0.8154]
[1747620622706,4.13393964,2419.0,2418.9,0.8154]
[1747620622936,4.13342702,2419.3,2418.9,8.962]
[1747620623137,4.13429329,2418.8,2418.6,0.8154]
[1747620623312,4.13429329,2418.8,2418.7,8.962]
[1747620623633,4.13462333,2418.6,2418.5,0.30330362]
[1747620623799,4.13432669,2418.8,2418.5,9.26530362]
[1747620624349,4.13405115,2419.0,2418.5,9.26530362]
[1747620624350,4.13404824,2419.0,2418.5,9.26530362]
[1747620624567,4.13412181,2418.9,2418.5,9.26530362]
[1747620624695,4.13462333,2418.6,2418.5,9.26530362]
[1747620625178,4.13421384,2418.9,2418.3,0.8154]
[1747620625305,4.13462333,2418.6,2418.5,8.962]
[1747620625511,4.13496526,2418.4,2418.3,9.7774]
[1747620625713,4.13496526,2418.4,2418.3,8.962]
[1747620626611,4.13571393,2418.0,2417.9,8.962]
[1747620627200,4.13554459,2418.1,2417.9,8.962]
[1747620627600,4.13564929,2418.0,2417.9,8.962]
[1747620628040,4.13556418,2418.1,2417.9,8.962]
[1747620628444,4.13564929,2418.0,2417.9,8.962]
[1747620628805,10.79453542,2418.8,2417.9,8.962]
[1747620629043,4.13483163,2418.5,2417.7,0.8226]
[1747620629375,4.13574943,2418.0,2417.8,8.962]
[1747620629883,4.13560558,2418.1,2417.8,8.962]
[1747620630038,4.13538052,2418.2,2417.8,8.962]
[1747620630238,4.13513094,2418.4,2417.9,4.13580174]
[1747620630544,14.10205963,2418.8,2418.2,4.13518922]
[1747620630754,14.10205963,2418.8,2418.3,9.7748]
[1747620630939,4.1344647,2418.7,2418.3,9.7748]
[1747620631135,4.13486225,2418.5,2418.3,9.7748]
[1747620631666,8.981,2419.0,2418.3,9.7748]
[1747620631857,4.13459792,2418.7,2418.3,9.77194989]
[1747620632185,4.134653,2418.6,2418.3,9.77194989]
[1747620632353,4.13496526,2418.4,2418.3,9.77194989]
[1747620632545,4.13496526,2418.4,2418.3,9.7748]
[1747620632740,4.13486421,2418.5,2418.3,9.7748]
[1747620632940,4.13469225,2418.6,2418.3,9.7748]
[1747620633572,4.13453993,2418.7,2418.3,9.7748]
[1747620633780,4.13428146,2418.8,2418.3,9.7748]
[1747620633781,4.13435969,2418.8,2418.3,9.7748]
[1747620633939,4.13445447,2418.7,2418.3,9.7748]
[1747620634560,4.13447894,2418.7,2418.3,9.7748]
[1747620635891,4.13459903,2418.7,2418.3,9.7748]
[1747620636715,4.13419784,2418.9,2418.3,9.7748]
[1747620637003,4.13419784,2418.9,2418.3,8.963]
[1747620637004,4.13496526,2418.4,2418.3,8.963]
[1747620637322,4.13454429,2418.7,2418.3,8.963]
[1747620637455,4.13462689,2418.6,2418.3,8.963]
[1747620637659,4.13446647,2418.7,2418.3,8.963]
[1747620637660,4.1348162,2418.5,2418.3,8.963]
[1747620638578,4.13496526,2418.4,2418.3,8.963]
[1747620638959,4.13488518,2418.5,2418.3,8.963]
[1747620639161,9.96771237,2418.9,2418.3,8.963]
[1747620639362,4.13480941,2418.5,2418.3,8.963]
[1747620639675,4.13496526,2418.4,2418.3,8.963]
[1747620642910,4.13520825,2418.3,2418.0,0.8046]
[1747620643081,4.13524954,2418.3,2418.1,8.902]
[1747620643411,4.13530725,2418.2,2418.1,8.902]
[1747620643719,4.13547826,2418.1,2418.0,0.8046]
[1747620643917,4.13521452,2418.3,2418.1,8.902]
[1747620644116,4.13504373,2418.4,2418.1,8.902]
[1747620644619,4.13484732,2418.5,2418.1,8.902]
[1747620644819,10.77806124,2418.8,2418.1,8.902]
[1747620645010,4.13530725,2418.2,2418.1,8.902]
[1747620645916,4.1352076,2418.3,2418.1,8.902]
[1747620646311,4.13530725,2418.2,2418.1,8.902]
[1747620646981,4.13496541,2418.4,2418.1,8.902]
[1747620647195,14.10185354,2418.9,2418.1,8.902]
[1747620647196,9.96771237,2418.9,2418.1,8.902]
[1747620647378,15.51782289,2418.9,2418.2,8.902]
[1747620647585,0.0579,2419.3,2418.2,8.902]
[1747620647818,4.1340428,2419.0,2418.3,13.00446797]
[1747620648017,4.13411993,2418.9,2418.4,4.13480435]
[1747620648322,4.13492392,2418.5,2418.3,18.682]
[1747620648494,4.13496526,2418.4,2418.3,18.682]
[1747620648819,4.13496526,2418.4,2418.3,27.584]
[1747620649038,0.0579,2419.3,2418.3,27.584]
[1747620649193,4.134453,2418.7,2418.3,27.584]
[1747620649387,4.13436324,2418.8,2418.3,31.71908517]
[1747620649585,12.98298231,2419.0,2418.3,31.71908517]
[1747620649789,4.13419293,2418.9,2418.4,4.13487954]
[1747620650108,9.96771237,2419.4,2418.6,0.8096]
[1747620650313,4.1337415,2419.2,2418.7,4.13445239]
[1747620650616,4.1336885,2419.2,2418.8,8.902]
[1747620651484,4.13381943,2419.1,2418.8,8.902]
[1747620652493,4.13348493,2419.3,2418.8,8.902]
[1747620652494,4.13365301,2419.2,2418.8,8.902]
[1747620652988,4.1336817,2419.2,2418.8,8.902]
[1747620653380,4.1336817,2419.2,2418.8,9.20696599]
[1747620653889,4.13379008,2419.1,2418.8,8.902]
[1747620655023,17.85,2420.1,2418.8,8.902]
[1747620655024,8.8669,2419.9,2419.0,4.13393964]
[1747620655201,4.13290586,2419.7,2419.1,4.13368127]
[1747620655401,4.13292579,2419.6,2419.1,4.13368127]
[1747620655592,4.13318457,2419.5,2419.0,13.49288144]
[1747620655793,4.13299015,2419.6,2419.1,4.13376302]
[1747620656000,4.1331048,2419.5,2419.0,16.39891294]
[1747620656646,4.1322314,2420.0,2418.9,0.8117]
[1747620656859,4.13315576,2419.5,2419.0,8.9]
[1747620656996,4.13291828,2419.6,2419.1,4.13368549]
[1747620657300,4.13308991,2419.5,2419.0,13.03382827]
[1747620657499,4.133005,2419.6,2419.1,4.13375549]
[1747620658328,4.133005,2419.6,2419.2,0.7933]
[1747620658628,4.13342702,2419.3,2419.2,0.7933]
[1747620658793,4.13328641,2419.4,2419.2,9.6933]
[1747620658990,4.13321757,2419.5,2419.2,9.6933]
[1747620659190,4.13299259,2419.6,2419.2,9.6933]
[1747620659624,16.784,2420.0,2419.2,9.6933]
[1747620659829,4.13320709,2419.5,2419.2,9.6933]
[1747620659994,4.13331074,2419.4,2419.2,9.6933]
[1747620660331,4.13428146,2418.8,2418.7,0.30330362]
[1747620660537,21.00528146,2418.8,2418.5,0.41091263]
[1747620660755,4.19354929,2418.0,2417.9,0.80154854]
[1747620660941,21.49790422,2418.0,2417.9,0.80154854]
[1747620661237,12.13616246,2417.7,2417.6,0.41349507]
[1747620661541,4.13718919,2417.1,2417.0,0.80154854]
[1747620661742,21.10208919,2417.1,2417.0,0.80154854]
[1747620663550,21.10208919,2417.1,2417.0,0.74364854]
[1747620663728,12.13804518,2416.6,2416.5,0.99078793]
[1747620663936,29.99304518,2416.6,2416.5,0.99078793]
[1747620664241,8.0,2416.5,2415.3,8.903]
[1747620664446,4.13905033,2416.1,2415.4,0.04140002]
[1747620664646,4.14027242,2415.3,2415.2,0.005]
[1747620665054,4.14027242,2415.3,2411.6,3.5348686]
[1747620665055,4.14628078,2411.8,2411.6,3.5348686]
[1747620665293,31.67943558,2411.8,2411.7,9.10999894]
[1747620665455,14.14843558,2411.8,2411.7,9.10999894]
[1747620665746,14.46118505,2411.8,2411.7,0.15974647]
[1747620665896,12.1464527,2411.7,2409.9,5.1277593]
[1747620666103,4.14937759,2410.0,2409.9,5.1277593]
[1747620666347,14.31637759,2410.0,2409.9,5.47415649]
[1747620666501,4.14937759,2410.0,2409.9,5.47415649]
[1747620667035,12.14937759,2410.0,2409.9,5.47415649]
[1747620667347,4.14937759,2410.0,2409.9,0.34639719]
[1747620667505,4.14922121,2410.1,2409.9,0.34639719]
[1747620667839,4.14925638,2410.1,2409.9,0.34639719]
[1747620668050,4.14937759,2410.0,2409.9,0.34639719]
[1747620668510,17.862,2411.2,2409.9,0.34639719]
[1747620668511,10.447,2410.6,2409.9,10.59439719]
[1747620668712,0.55,2410.5,2409.3,0.00651696]
[1747620668898,8.55,2410.5,2409.4,10.248]
[1747620669105,10.447,2410.6,2409.3,0.35300042]
[1747620669444,8.00984521,2410.5,2409.4,10.248]
[1747620669750,4.15368639,2407.5,2407.4,4.19907361]
[1747620669901,4.15144414,2408.9,2407.4,4.19907361]
[1747620670100,0.00984521,2408.4,2407.4,5.01627361]
[1747620670318,0.00984521,2408.4,2407.4,4.19907361]
[1747620670758,4.15247902,2408.2,2407.4,4.19907361]
[1747620670965,0.35359287,2408.1,2407.4,4.19907361]
[1747620671144,0.34374766,2408.0,2407.5,0.41990736]
[1747620671331,0.00984521,2407.9,2407.5,0.41990736]
[1747620671529,0.34374766,2407.8,2407.4,4.19907361]
[1747620671834,0.07429788,2407.8,2407.5,8.7992]
[1747620672153,0.48797483,2408.6,2407.6,9.844884]
[1747620672322,0.2162,2409.0,2408.3,0.7992]
[1747620672523,20.42429044,2410.7,2408.5,8.0]
[1747620672725,0.34374766,2409.3,2408.6,16.217]
[1747620673249,0.34374766,2409.3,2408.7,16.343]
[1747620673559,4.14897186,2410.3,2408.8,32.551]
[1747620673735,16.329,2410.3,2408.9,16.217]
[1747620673937,16.329,2410.3,2409.0,1.6217]
[1747620674163,16.329,2410.3,2408.4,35.10492]
[1747620674164,16.329,2410.3,2408.4,0.87992]
[1747620674458,5.56907581,2409.9,2406.9,0.8228]
[1747620674664,8.0,2409.5,2407.0,16.224]
[1747620674827,5.56907581,2409.6,2407.1,13.56907581]
[1747620675149,4.15041089,2409.4,2407.3,8.0]
[1747620675463,8.0,2409.5,2407.6,5.56907581]
[1747620675659,4.14748136,2411.2,2407.8,0.7865]
[1747620675660,4.15055929,2409.4,2407.8,0.7865]
[1747620675972,4.14893853,2410.3,2408.6,5.56907581]
[1747620676150,9.71661661,2411.1,2408.6,5.56907581]
[1747620676151,4.1475408,2411.1,2408.8,8.8233]
[1747620676334,4.15010657,2409.6,2408.9,17.904]
[1747620676656,4.14957554,2409.9,2408.9,17.904]
[1747620676865,4.14957554,2409.9,2409.0,3.08787366]
[1747620677041,4.14890424,2410.3,2409.1,5.56907581]
[1747620677367,0.34374766,2410.7,2409.2,16.228]
[1747620677663,0.34374766,2410.7,2409.3,8.0]
[1747620678123,4.49193741,2410.7,2409.8,0.7708]
[1747620678326,0.34374766,2410.7,2409.9,17.909]
[1747620679654,4.14834481,2410.6,2409.9,17.909]
[1747620679840,4.14723708,2411.3,2410.0,16.778]
[1747620680057,4.14723708,2411.3,2409.9,34.125]
[1747620680058,0.30677276,2411.6,2409.9,17.909]
[1747620680228,4.14863941,2410.5,2410.1,16.228]
[1747620680449,8.0,2411.7,2409.9,17.909]
[1747620680753,4.14903893,2410.2,2410.0,16.23]
[1747620681092,4.14700606,2411.4,2409.9,17.909]
[1747620681392,4.14916877,2410.2,2409.9,17.909]
[1747620681595,4.14813091,2410.8,2410.0,16.23]
[1747620681749,4.14881377,2410.4,2410.0,16.23]
[1747620682086,4.14731254,2411.2,2409.9,34.139]
[1747620682087,16.106,2411.1,2409.9,34.139]
[1747620682247,4.14903879,2410.2,2409.9,34.139]
[1747620682452,4.14754461,2411.1,2409.9,41.77941799]
[1747620682653,4.14846775,2410.6,2410.0,4.14936402]
[1747620682866,4.14823799,2410.7,2410.0,4.14936402]
[1747620683064,4.14698117,2411.4,2410.1,0.55]
[1747620683255,4.14714054,2411.3,2409.9,26.96905581]
[1747620683578,4.49035753,2411.7,2410.2,16.23]
[1747620683579,4.14829306,2410.7,2410.2,16.23]
[1747620683984,4.339,2410.6,2409.7,5.56907581]
[1747620684149,4.339,2410.6,2406.7,0.7617]
[1747620684150,8.0,2409.7,2406.7,0.97782255]
[1747620684350,4.15489446,2406.8,2406.7,0.97782255]
[1747620684569,4.15489446,2406.8,2406.7,0.21612255]
[1747620684770,4.15541242,2406.5,2406.4,0.7617]
[1747620684969,4.15560851,2406.4,2405.7,0.7617]
[1747620685183,17.343,2406.9,2405.7,0.7617]
[1747620685418,4.15543993,2406.5,2405.7,18.6737]
[1747620685701,4.15397911,2407.4,2406.1,5.58543862]
[1747620685902,0.30464029,2407.9,2406.2,4.19746515]
[1747620685903,4.15299638,2407.9,2406.2,4.19746515]